bitfinex-derivatives/quotes_SOLF0:USTF0_20260305
["timestamp","ask_amount","ask_price","bid_price","bid_amount"]
[1772702521593,9.854,91.313,91.264,3.71952227]
[1772702521798,9.854,91.313,91.243,3.71952227]
[1772702522101,9.854,91.313,91.253,9.861]
[1772702522395,3.6366437,91.305,91.243,3.71952227]
[1772702522601,3.6366437,91.305,91.241,9.862]
[1772702523002,3.6366437,91.305,91.242,3.71952227]
[1772702523202,3.6366437,91.329,91.242,3.71952227]
[1772702523798,9.854,91.314,91.252,9.861]
[1772702523997,3.6366437,91.309,91.221,3.71952227]
[1772702525603,9.857,91.285,91.222,9.864]
[1772702525898,9.857,91.285,91.221,3.71952227]
[1772702525899,3.6366437,91.309,91.221,3.71952227]
[1772702526098,9.857,91.287,91.222,9.864]
[1772702527000,3.6366437,91.287,91.221,3.71952227]
[1772702528099,9.858,91.28,91.221,3.71952227]
[1772702528398,9.858,91.28,91.211,9.865]
[1772702528399,3.6366437,91.287,91.222,3.71952227]
[1772702528604,9.857,91.286,91.222,3.71952227]
[1772702528799,10.07799219,91.346,91.223,3.71952227]
[1772702529005,3.6366437,91.321,91.241,3.71952227]
[1772702529206,9.854,91.314,91.241,3.71952227]
[1772702529407,3.6366437,91.321,91.241,3.71952227]
[1772702529809,3.6366437,91.319,91.221,3.71952227]
[1772702530009,9.856,91.297,91.243,9.862]
[1772702530308,3.6366437,91.319,91.221,3.71952227]
[1772702530706,9.857,91.289,91.226,3.71952227]
[1772702530911,3.6366437,91.319,91.226,3.71952227]
[1772702531111,3.6366437,91.319,91.241,3.71952227]
[1772702531812,9.856,91.3,91.242,13.58152227]
[1772702532107,9.856,91.3,91.243,3.71952227]
[1772702532314,9.857,91.291,91.243,3.71952227]
[1772702532502,7.40630509,91.32,91.229,3.71952227]
[1772702532503,3.6366437,91.301,91.229,3.71952227]
[1772702533415,3.6366437,91.301,91.23,3.71952227]
[1772702534010,10.07799219,91.331,91.22,7.40630509]
[1772702534011,3.6366437,91.299,91.22,7.40630509]
[1772702534409,3.6366437,91.279,91.192,3.71952227]
[1772702534718,3.6366437,91.261,91.196,3.71952227]
[1772702535213,9.861,91.255,91.196,3.71952227]
[1772702535615,3.6366437,91.259,91.174,3.71952227]
[1772702536315,3.6366437,91.239,91.153,3.71952227]
[1772702536712,9.864,91.227,91.156,3.71952227]
[1772702537615,9.865,91.218,91.156,3.71952227]
[1772702537808,3.6366437,91.239,91.158,3.71952227]
[1772702538006,3.6366437,91.239,91.161,3.71952227]
[1772702538208,9.861,91.248,91.161,3.71952227]
[1772702538412,3.6366437,91.259,91.179,3.71952227]
[1772702538810,9.862,91.238,91.179,3.71952227]
[1772702539116,3.6366437,91.259,91.16,7.40630509]
[1772702539420,9.864,91.224,91.157,3.7879323]
[1772702539622,3.68499191,91.239,91.157,3.7879323]
[1772702540015,9.864,91.224,91.158,3.7879323]
[1772702540621,3.68499191,91.239,91.158,3.7879323]
[1772702541322,9.866,91.206,91.158,3.7879323]
[1772702541514,3.68499191,91.22,91.158,3.7879323]
[1772702542325,9.866,91.207,91.158,3.7879323]
[1772702543320,9.865,91.217,91.158,3.7879323]
[1772702543622,3.68499191,91.22,91.14,3.7879323]
[1772702543822,9.866,91.208,91.14,3.7879323]
[1772702544120,9.866,91.208,91.151,3.7879323]
[1772702546427,9.865,91.217,91.154,3.7879323]
[1772702546622,3.68499191,91.22,91.154,3.7879323]
[1772702546829,3.68499191,91.22,91.13,7.40630509]
[1772702546830,3.68499191,91.219,91.131,3.7879323]
[1772702547327,9.867,91.199,91.144,9.872]
[1772702548438,3.83661993,91.198,91.101,3.92058737]
[1772702548822,3.83661993,91.198,91.115,3.92058737]
[1772702549123,9.869,91.173,91.115,3.92058737]
[1772702549517,10.07799219,91.246,91.115,3.92058737]
[1772702549717,9.868,91.188,91.12,3.92058737]
[1772702549919,9.868,91.188,91.121,3.92058737]
[1772702550524,9.869,91.179,91.121,3.92058737]
[1772702550930,9.869,91.179,91.08,7.40630509]
[1772702550931,3.83661993,91.188,91.102,3.92058737]
[1772702552426,9.871,91.163,91.107,13.79758737]
[1772702552823,9.871,91.163,91.108,3.92058737]
[1772702553229,9.871,91.163,91.11,9.876]
[1772702555030,9.871,91.163,91.11,13.79658737]
[1772702555226,9.87,91.172,91.114,9.876]
[1772702555524,9.87,91.172,91.114,13.79658737]
[1772702557227,3.83661993,91.219,91.135,3.92058737]
[1772702558436,9.867,91.196,91.146,9.872]
[1772702558727,9.865,91.214,91.154,9.871]
[1772702558934,3.83661993,91.241,91.161,3.92058737]
[1772702559733,10.07799219,91.296,91.14,7.40630509]
[1772702559734,3.83661993,91.263,91.181,3.92058737]
[1772702560034,3.83661993,91.263,91.201,3.92058737]
[1772702560733,3.83661993,91.259,91.18,7.40630509]
[1772702561035,3.83661993,91.258,91.19,9.867]
[1772702561229,3.83661993,91.258,91.181,3.92058737]
[1772702561929,3.83661993,91.258,91.185,3.92058737]
[1772702562636,9.861,91.246,91.185,3.92058737]
[1772702562836,13.69761993,91.246,91.185,3.92058737]
[1772702563135,9.862,91.242,91.185,3.92058737]
[1772702563330,3.83661993,91.245,91.185,3.92058737]
[1772702563530,9.863,91.233,91.185,3.92058737]
[1772702563833,3.83661993,91.245,91.185,3.92058737]
[1772702564237,3.83661993,91.29,91.201,3.92058737]
[1772702564432,3.83661993,91.29,91.221,3.92058737]
[1772702565429,9.858,91.275,91.221,3.92058737]
[1772702565635,3.83661993,91.274,91.2,11.32689246]
[1772702566438,13.69561993,91.269,91.201,9.866]
[1772702566635,3.83661993,91.268,91.2,3.92058737]
[1772702566840,3.83661993,91.268,91.181,3.92058737]
[1772702567039,3.83661993,91.253,91.181,13.78858737]
[1772702567537,3.83661993,91.253,91.181,3.92058737]
[1772702567738,3.83661993,91.279,91.181,3.92058737]
[1772702568244,3.83661993,91.249,91.184,9.868]
[1772702569036,3.9612911,91.247,91.181,3.92058737]
[1772702569337,3.9612911,91.267,91.181,3.92058737]
[1772702569543,3.9612911,91.267,91.201,3.6502879]
[1772702569842,3.9612911,91.299,91.201,3.6502879]
[1772702570539,9.858,91.276,91.211,3.6502879]
[1772702571037,9.857,91.285,91.222,3.6502879]
[1772702571740,3.9612911,91.324,91.25,7.40808125]
[1772702572038,3.9612911,91.324,91.251,3.6502879]
[1772702572233,3.9612911,91.324,91.21,7.40808125]
[1772702572234,3.9612911,91.344,91.271,3.6502879]
[1772702572843,9.852,91.334,91.271,3.6502879]
[1772702573045,3.9612911,91.344,91.251,3.6502879]
[1772702573543,3.9612911,91.344,91.263,3.6502879]
[1772702574136,13.8132911,91.332,91.263,13.5102879]
[1772702574545,3.9612911,91.332,91.263,3.6502879]
[1772702574846,3.9612911,91.332,91.274,9.858]
[1772702575942,9.851,91.343,91.278,3.6502879]
[1772702576137,3.9612911,91.351,91.278,3.6502879]
[1772702576340,3.9612911,91.351,91.27,7.40808125]
[1772702576546,3.9612911,91.37,91.3,9.856]
[1772702576846,9.85,91.353,91.291,3.6502879]
[1772702577346,3.9612911,91.352,91.291,3.6502879]
[1772702577943,9.851,91.348,91.291,3.6502879]
[1772702579245,9.853,91.329,91.27,7.40808125]
[1772702579947,3.9612911,91.347,91.271,3.6502879]
[1772702580144,3.9612911,91.367,91.271,3.6502879]
[1772702580345,3.9612911,91.367,91.291,3.6502879]
[1772702581041,9.85,91.35,91.291,3.6502879]
[1772702581242,3.9612911,91.349,91.27,11.05836915]
[1772702581453,3.9612911,91.349,91.251,3.6502879]
[1772702581744,3.9612911,91.32,91.251,3.6502879]
[1772702583249,3.9612911,91.319,91.228,3.6502879]
[1772702583649,3.9612911,91.319,91.23,7.40808125]
[1772702583851,9.855,91.308,91.24,3.6502879]
[1772702584050,3.9612911,91.339,91.251,3.6502879]
[1772702584248,9.852,91.336,91.271,3.6502879]
[1772702584451,3.9612911,91.339,91.271,3.6502879]
[1772702584947,3.9612911,91.359,91.3,13.5062879]
[1772702585153,3.9612911,91.369,91.277,3.6502879]
[1772702585351,3.9612911,91.348,91.277,3.6502879]
[1772702585748,7.40808125,91.37,91.277,3.6502879]
[1772702585749,3.9612911,91.368,91.277,3.6502879]
[1772702586459,9.85,91.352,91.286,3.6502879]
[1772702587460,9.849,91.361,91.301,3.6502879]
[1772702587951,3.9612911,91.368,91.27,7.40808125]
[1772702587952,9.851,91.343,91.285,9.857]
[1772702588255,9.851,91.343,91.286,3.6502879]
[1772702588455,3.9612911,91.368,91.286,3.6502879]
[1772702589455,9.85,91.353,91.291,3.6502879]
[1772702589657,3.9612911,91.368,91.271,3.6502879]
[1772702590253,3.9612911,91.35,91.271,3.6502879]
[1772702590854,7.40808125,91.35,91.271,3.6502879]
[1772702591063,3.9612911,91.329,91.245,3.6502879]
[1772702591554,9.857,91.288,91.245,3.6502879]
[1772702591753,3.9612911,91.305,91.245,3.6502879]
[1772702592357,9.855,91.303,91.246,9.861]
[1772702592560,9.855,91.303,91.246,13.5112879]
[1772702592958,9.856,91.295,91.246,3.6502879]
[1772702593364,9.856,91.295,91.211,3.6502879]
[1772702593761,3.9612911,91.305,91.236,3.6502879]
[1772702593762,9.855,91.304,91.236,3.6502879]
[1772702594358,9.855,91.304,91.25,9.861]
[1772702595559,9.855,91.304,91.236,3.6502879]
[1772702595560,3.9612911,91.325,91.236,3.6502879]
[1772702595761,3.9612911,91.305,91.236,3.6502879]
[1772702595960,3.9612911,91.305,91.222,9.864]
[1772702596162,9.856,91.295,91.231,9.863]
[1772702597265,9.857,91.287,91.231,9.863]
[1772702597559,9.857,91.287,91.233,9.863]
[1772702597963,9.858,91.278,91.232,3.6502879]
[1772702598164,3.9612911,91.289,91.203,3.6502879]
[1772702598866,3.9612911,91.289,91.204,13.5162879]
[1772702599166,9.86,91.264,91.207,9.866]
[1772702599368,9.86,91.264,91.208,3.75945295]
[1772702599567,3.9612911,91.289,91.208,3.75945295]
[1772702599761,9.859,91.265,91.208,3.75945295]
[1772702600065,3.9612911,91.289,91.208,3.75945295]
[1772702601359,9.858,91.275,91.219,9.864]
[1772702602264,9.858,91.275,91.21,9.865]
[1772702602867,9.858,91.275,91.216,9.865]
[1772702604470,9.856,91.295,91.234,3.75945295]
[1772702605368,9.857,91.286,91.234,3.75945295]
[1772702605565,9.857,91.286,91.21,7.40808125]
[1772702605566,3.73184783,91.285,91.211,3.75945295]
[1772702605968,9.858,91.278,91.213,3.75945295]
[1772702607364,9.858,91.278,91.222,3.85202102]
[1772702607563,3.73184783,91.285,91.222,3.85202102]
[1772702607770,3.61791799,91.309,91.222,3.85202102]
[1772702609475,9.857,91.284,91.233,9.863]
[1772702609975,3.61791799,91.291,91.233,9.863]
[1772702610175,3.61791799,91.291,91.235,13.71502102]
[1772702611375,3.61791799,91.291,91.243,9.862]
[1772702611575,9.856,91.301,91.235,3.85202102]
[1772702611877,3.61791799,91.307,91.235,3.85202102]
[1772702613074,3.61791799,91.307,91.243,9.862]
[1772702613975,9.855,91.305,91.251,9.861]
[1772702614778,9.855,91.305,91.252,3.85202102]
[1772702615081,9.856,91.297,91.242,9.862]
[1772702615279,13.47391799,91.297,91.235,3.85202102]
[1772702615575,3.61791799,91.297,91.235,3.85202102]
[1772702616179,9.857,91.288,91.235,3.85202102]
[1772702616381,3.61791799,91.297,91.235,3.85202102]
[1772702616676,9.858,91.281,91.235,3.85202102]
[1772702617280,3.61791799,91.273,91.218,3.85202102]
[1772702618175,3.61791799,91.273,91.197,3.85202102]
[1772702618483,3.61791799,91.253,91.18,3.85202102]
[1772702618979,9.86,91.26,91.206,3.85202102]
[1772702619686,3.61791799,91.275,91.207,9.866]
[1772702619687,9.859,91.269,91.207,9.866]
[1772702619881,3.61791799,91.275,91.208,3.85202102]
[1772702620189,3.61791799,91.275,91.211,3.85202102]
[1772702622083,3.61791799,91.275,91.191,3.85202102]
[1772702622985,9.861,91.247,91.199,9.866]
[1772702623386,3.61791799,91.259,91.191,3.85202102]
[1772702623589,3.61791799,91.259,91.192,9.867]
[1772702623791,3.61791799,91.259,91.192,13.71902102]
[1772702624391,3.61791799,91.259,91.198,9.867]
[1772702625679,3.61791799,91.289,91.199,3.85202102]
[1772702626085,7.40808125,91.31,91.199,3.85202102]
[1772702626086,3.61791799,91.271,91.229,9.863]
[1772702626583,3.61791799,91.309,91.229,9.863]
[1772702627287,9.857,91.288,91.22,9.864]
[1772702627497,3.61791799,91.287,91.198,3.85202102]
[1772702627993,9.858,91.275,91.211,9.865]
[1772702628194,3.61791799,91.274,91.211,9.865]
[1772702628791,3.96584168,91.272,91.202,9.866]
[1772702629794,3.96584168,91.27,91.202,9.866]
[1772702630190,3.96584168,91.27,91.202,13.62071553]
[1772702630697,9.859,91.268,91.207,9.866]
[1772702631191,9.859,91.268,91.214,9.865]
[1772702631991,9.859,91.268,91.214,13.61971553]
[1772702632192,7.41138758,91.29,91.164,19.741]
[1772702632193,3.96584168,91.289,91.217,3.75471553]
[1772702633590,9.858,91.279,91.219,13.61871553]
[1772702633790,3.96584168,91.289,91.219,13.61871553]
[1772702633990,3.96584168,91.289,91.22,3.75471553]
[1772702634198,9.859,91.272,91.221,13.61871553]
[1772702634395,12.20874259,91.289,91.222,3.75471553]
[1772702634594,3.96584168,91.288,91.222,3.75471553]
[1772702635495,9.858,91.281,91.223,9.864]
[1772702635699,3.96584168,91.28,91.223,9.864]
[1772702635999,3.96584168,91.299,91.222,3.75471553]
[1772702637093,9.857,91.29,91.239,9.862]
[1772702637295,3.96584168,91.299,91.24,3.75471553]
[1772702637600,7.41138758,91.33,91.24,3.75471553]
[1772702637601,3.96584168,91.317,91.24,3.75471553]
[1772702637901,3.96584168,91.315,91.24,3.75471553]
[1772702638099,3.96584168,91.315,91.241,9.862]
[1772702638100,9.857,91.292,91.241,9.862]
[1772702638303,3.96584168,91.296,91.242,3.75471553]
[1772702638501,3.96584168,91.325,91.242,3.75471553]
[1772702638801,3.96584168,91.323,91.242,3.75471553]
[1772702638994,3.96584168,91.321,91.242,3.75471553]
[1772702639192,3.96584168,91.319,91.242,3.75471553]
[1772702639401,9.856,91.3,91.245,9.862]
[1772702639602,3.96584168,91.315,91.242,3.75471553]
[1772702639797,3.96584168,91.315,91.21,7.41138758]
[1772702639798,3.96584168,91.309,91.227,3.75471553]
[1772702640300,3.96584168,91.281,91.227,3.75471553]
[1772702640901,3.96584168,91.298,91.23,3.75471553]
[1772702642003,3.96584168,91.298,91.237,3.75471553]
[1772702642204,3.96584168,91.289,91.22,3.75471553]
[1772702642602,7.41138758,91.29,91.191,3.75471553]
[1772702642603,3.96584168,91.269,91.191,3.75471553]
[1772702643804,3.96584168,91.253,91.171,3.75471553]
[1772702644403,9.863,91.231,91.178,3.75471553]
[1772702644598,3.96584168,91.253,91.178,3.75471553]
[1772702645501,3.96584168,91.253,91.15,19.83542725]
[1772702645502,3.96584168,91.274,91.201,3.75471553]
[1772702645706,3.96584168,91.293,91.211,3.75471553]
[1772702646010,3.96584168,91.293,91.231,9.863]
[1772702646506,9.858,91.282,91.23,3.75471553]
[1772702647202,17.09576997,91.306,91.23,11.16610311]
[1772702647407,8.25560894,91.31,91.231,3.75471553]
[1772702647607,3.96584168,91.311,91.231,3.75471553]
[1772702647798,9.855,91.309,91.253,9.861]
[1772702648806,8.25560894,91.321,91.248,3.75471553]
[1772702648807,13.82184168,91.301,91.248,3.75471553]
[1772702649007,3.96584168,91.301,91.248,3.75471553]
[1772702649306,9.855,91.309,91.258,9.86]
[1772702649709,9.855,91.309,91.248,3.75471553]
[1772702650101,13.82084168,91.309,91.248,3.75471553]
[1772702650402,9.856,91.301,91.249,9.861]
[1772702650605,3.96584168,91.309,91.249,9.861]
[1772702651406,13.82084168,91.309,91.249,9.861]
[1772702652410,3.96584168,91.301,91.224,3.75471553]
[1772702653307,3.96584168,91.28,91.202,3.75471553]
[1772702654104,3.96584168,91.28,91.183,19.93740556]
[1772702654105,3.96584168,91.28,91.219,3.75471553]
[1772702654908,9.856,91.295,91.227,3.75471553]
[1772702655109,3.96584168,91.299,91.227,3.75471553]
[1772702655708,9.856,91.296,91.235,3.75471553]
[1772702657614,3.96584168,91.315,91.238,3.75471553]
[1772702657911,3.96584168,91.315,91.241,9.862]
[1772702658102,9.857,91.292,91.238,3.75471553]
[1772702659812,9.856,91.301,91.244,3.66101515]
[1772702660106,3.96584168,91.315,91.244,3.66101515]
[1772702660310,9.856,91.294,91.244,3.66101515]
[1772702661103,9.857,91.29,91.241,9.862]
[1772702661308,3.61535226,91.289,91.241,9.862]
[1772702662414,11.86606789,91.319,91.244,3.66101515]
[1772702662612,3.61535226,91.318,91.244,3.66101515]
[1772702663108,9.855,91.305,91.244,3.66101515]
[1772702664015,3.61535226,91.313,91.244,3.66101515]
[1772702664222,3.61535226,91.333,91.244,3.66101515]
[1772702664612,3.61535226,91.333,91.263,3.66101515]
[1772702665012,3.61535226,91.373,91.301,3.66101515]
[1772702665311,7.41138758,91.4,91.301,3.66101515]
[1772702665312,3.61535226,91.396,91.301,3.66101515]
[1772702665517,3.61535226,91.396,91.321,3.66101515]
[1772702665817,3.61535226,91.396,91.329,3.66101515]
[1772702666815,13.45935226,91.396,91.33,9.851]
[1772702667013,3.61535226,91.395,91.32,7.41138758]
[1772702667312,3.61535226,91.395,91.321,3.66101515]
[1772702667517,9.845,91.391,91.331,9.851]
[1772702667717,9.845,91.391,91.331,13.7583608]
[1772702668218,3.61535226,91.395,91.335,3.9073608]
[1772702668911,9.843,91.412,91.338,3.9073608]
[1772702669117,3.58893177,91.413,91.341,3.9073608]
[1772702670013,3.58893177,91.413,91.321,3.9073608]
[1772702670517,3.58893177,91.399,91.321,13.7593608]
[1772702670912,3.58893177,91.399,91.32,7.41138758]
[1772702670913,3.58893177,91.378,91.307,9.854]
[1772702671516,3.58893177,91.371,91.3,11.31874838]
[1772702671717,3.58893177,91.371,91.3,3.9073608]
[1772702672121,3.58893177,91.356,91.286,9.856]
[1772702672818,3.58893177,91.354,91.286,9.856]
[1772702674223,9.849,91.35,91.283,3.9073608]
[1772702674613,3.58893177,91.354,91.283,3.9073608]
[1772702675220,9.849,91.352,91.284,9.856]
[1772702675424,9.849,91.352,91.285,3.9073608]
[1772702675624,3.58893177,91.354,91.285,3.9073608]
[1772702675922,9.849,91.353,91.297,3.9073608]
[1772702679424,9.85,91.345,91.286,9.856]
[1772702679628,3.58893177,91.358,91.279,3.9073608]
[1772702680527,3.58893177,91.358,91.292,3.9073608]
[1772702681029,3.58893177,91.356,91.3,13.7623608]
[1772702681619,3.58893177,91.356,91.301,3.9073608]
[1772702681828,3.58893177,91.356,91.304,9.854]
[1772702682029,3.58893177,91.379,91.305,3.9073608]
[1772702682826,13.43493177,91.379,91.31,9.853]
[1772702683026,3.58893177,91.378,91.31,13.7603608]
[1772702683224,3.58893177,91.378,91.311,3.9073608]
[1772702683721,3.58893177,91.376,91.26,7.41138758]
[1772702683924,3.58893177,91.359,91.261,3.9073608]
[1772702684125,3.58893177,91.359,91.294,3.9073608]
[1772702684323,3.58893177,91.379,91.294,3.9073608]
[1772702685535,7.41138758,91.38,91.294,3.9073608]
[1772702685536,3.58893177,91.377,91.316,9.853]
[1772702686124,9.847,91.372,91.305,3.9073608]
[1772702686735,3.58893177,91.371,91.309,9.854]
[1772702686936,9.847,91.37,91.31,3.9073608]
[1772702687135,3.58893177,91.371,91.31,3.9073608]
[1772702687537,9.845,91.388,91.322,3.9073608]
[1772702688134,3.58893177,91.384,91.322,3.9073608]
[1772702688339,3.58893177,91.384,91.303,3.9073608]
[1772702688638,13.43693177,91.364,91.305,9.854]
[1772702688839,13.43693177,91.364,91.305,13.75670219]
[1772702689043,3.95055211,91.399,91.306,3.90270219]
[1772702689839,7.41138758,91.4,91.306,3.90270219]
[1772702689840,9.847,91.372,91.319,9.853]
[1772702690233,3.95055211,91.383,91.3,7.41138758]
[1772702690431,1.90497044,91.41,91.284,3.90270219]
[1772702690432,9.85,91.344,91.284,3.90270219]
[1772702691540,9.85,91.344,91.288,13.75870219]
[1772702691738,9.85,91.344,91.289,3.90270219]
[1772702692039,3.95055211,91.351,91.279,9.857]
[1772702692340,3.95055211,91.349,91.272,3.90270219]
[1772702692534,9.852,91.322,91.274,9.857]
[1772702692734,9.852,91.322,91.272,3.90270219]
[1772702694639,9.852,91.322,91.272,13.76070219]
[1772702696242,9.851,91.33,91.278,9.857]
[1772702696639,3.95055211,91.333,91.273,3.90270219]
[1772702696943,9.852,91.323,91.274,9.857]
[1772702697339,9.852,91.323,91.273,3.90270219]
[1772702697340,7.39997693,91.35,91.273,3.90270219]
[1772702697545,3.95055211,91.349,91.273,3.90270219]
[1772702697941,3.95055211,91.333,91.273,3.90270219]
[1772702698843,3.95055211,91.333,91.279,9.857]
[1772702699743,3.95055211,91.349,91.251,3.90270219]
[1772702700146,3.95055211,91.335,91.251,3.90270219]
[1772702700543,3.95055211,91.329,91.251,3.90270219]
[1772702700739,9.852,91.328,91.267,9.858]
[1772702700944,3.95055211,91.327,91.251,3.90270219]
[1772702701644,13.62008896,91.392,91.251,3.90270219]
[1772702701847,13.62008896,91.392,91.25,7.39997693]
[1772702701848,3.95055211,91.365,91.3,3.90270219]
[1772702702848,3.95055211,91.363,91.3,3.90270219]
[1772702703548,3.95055211,91.363,91.312,9.853]
[1772702703848,3.95055211,91.363,91.3,3.90270219]
[1772702705353,3.95055211,91.363,91.321,9.852]
[1772702705750,3.95055211,91.38,91.321,9.852]
[1772702706250,3.95055211,91.379,91.283,3.90270219]
[1772702707642,3.95055211,91.379,91.32,13.75470219]
[1772702707848,3.95055211,91.379,91.321,3.90270219]
[1772702708543,3.95055211,91.397,91.321,3.90270219]
[1772702709051,3.95055211,91.395,91.329,9.852]
[1772702709352,3.95055211,91.395,91.277,19.93740556]
[1772702709353,3.95055211,91.419,91.341,3.90270219]
[1772702709555,3.95055211,91.419,91.365,9.848]
[1772702709753,3.95055211,91.419,91.341,3.90270219]
[1772702710253,3.95055211,91.416,91.355,9.849]
[1772702710650,3.95055211,91.416,91.341,3.90270219]
[1772702710845,9.843,91.413,91.345,9.85]
[1772702711153,3.95055211,91.412,91.345,9.85]
[1772702711357,3.95055211,91.412,91.341,3.90270219]
[1772702711949,9.84,91.432,91.341,3.90270219]
[1772702712154,3.95055211,91.432,91.361,3.90270219]
[1772702712356,3.95055211,91.451,91.392,9.845]
[1772702712854,3.95055211,91.451,91.392,13.74770219]
[1772702713056,3.95055211,91.47,91.401,9.844]
[1772702713251,3.95055211,91.47,91.401,3.90270219]
[1772702713750,9.834,91.489,91.423,9.841]
[1772702713951,9.834,91.489,91.423,13.74370219]
[1772702714351,13.78355211,91.499,91.427,13.74370219]
[1772702714549,3.95055211,91.499,91.428,3.90270219]
[1772702714753,152.852,91.569,91.38,7.39997693]
[1772702714754,3.95055211,91.525,91.441,3.90270219]
[1772702714952,3.95055211,91.525,91.452,3.90270219]
[1772702715550,3.95055211,91.512,91.452,3.90270219]
[1772702715747,3.95055211,91.512,91.434,3.90270219]
[1772702715949,3.95055211,91.512,91.437,3.90270219]
[1772702716153,3.95055211,91.512,91.441,3.90270219]
[1772702717759,3.95055211,91.499,91.421,3.90270219]
[1772702718260,3.95055211,91.497,91.421,13.74470219]
[1772702718456,3.95055211,91.497,91.421,3.90270219]
[1772702718657,3.58480639,91.474,91.349,3.86443546]
[1772702718856,3.58480639,91.459,91.361,3.86443546]
[1772702719255,3.58480639,91.459,91.398,9.844]
[1772702719559,3.58480639,91.459,91.382,3.86443546]
[1772702719965,3.58480639,91.5,91.401,3.86443546]
[1772702720661,3.58480639,91.487,91.417,9.842]
[1772702720856,3.58480639,91.487,91.401,3.86443546]
[1772702721064,3.58480639,91.507,91.421,3.86443546]
[1772702721265,3.58480639,91.507,91.44,3.86443546]
[1772702721460,3.58480639,91.507,91.421,3.86443546]
[1772702721656,3.58480639,91.489,91.401,3.86443546]
[1772702722255,3.58480639,91.489,91.42,9.842]
[1772702722464,3.58480639,91.489,91.421,3.86443546]
[1772702723265,3.58480639,91.509,91.433,3.86443546]
[1772702723560,13.41680639,91.509,91.436,9.84]
[1772702723762,3.58480639,91.508,91.433,3.86443546]
[1772702724765,3.58480639,91.504,91.433,3.86443546]
[1772702725466,3.58480639,91.504,91.435,3.86443546]
[1772702725762,19.651,91.572,91.38,7.39997693]
[1772702725763,3.58480639,91.524,91.441,3.86443546]
[1772702726362,3.58480639,91.524,91.444,9.839]
[1772702727162,13.41780639,91.502,91.444,9.839]
[1772702727362,3.87797241,91.501,91.422,3.75243385]
[1772702728059,3.87797241,91.501,91.446,3.75243385]
[1772702728366,3.87797241,91.526,91.446,3.75243385]
[1772702729065,3.87797241,91.52,91.446,3.75243385]
[1772702729466,3.87797241,91.52,91.421,3.75243385]
[1772702730468,9.833,91.502,91.444,9.839]
[1772702731066,9.833,91.502,91.444,13.59143385]
[1772702733271,9.833,91.502,91.42,7.39997693]
[1772702733272,9.835,91.484,91.424,3.75243385]
[1772702733475,3.87797241,91.502,91.424,3.75243385]
[1772702733771,3.87797241,91.502,91.4,7.39997693]
[1772702733772,9.837,91.467,91.405,9.843]
[1772702733967,3.87797241,91.489,91.401,3.75243385]
[1772702734171,3.87797241,91.469,91.401,3.75243385]
[1772702734370,9.837,91.46,91.401,3.75243385]
[1772702734562,3.87797241,91.469,91.401,3.75243385]
[1772702734963,3.87797241,91.469,91.381,3.75243385]
[1772702735372,13.71597241,91.459,91.399,9.844]
[1772702735569,3.87797241,91.458,91.399,9.844]
[1772702736170,3.87797241,91.449,91.377,3.75243385]
[1772702736977,7.39997693,91.45,91.377,3.75243385]
[1772702737173,3.87797241,91.46,91.377,3.75243385]
[1772702737675,9.838,91.458,91.395,13.59643385]
[1772702738274,3.87797241,91.449,91.386,9.845]
[1772702738472,3.87797241,91.449,91.37,3.75243385]
[1772702739077,13.71797241,91.436,91.37,3.75243385]
[1772702739787,3.87797241,91.436,91.37,3.75243385]
[1772702740479,9.839,91.447,91.39,9.845]
[1772702741588,7.39997693,91.45,91.398,9.844]
[1772702741892,3.87797241,91.455,91.39,3.75243385]
[1772702742591,9.838,91.452,91.393,9.845]
[1772702742788,3.87797241,91.451,91.39,3.75243385]
[1772702742992,7.39997693,91.49,91.344,3.75243385]
[1772702742993,3.87797241,91.449,91.344,3.75243385]
[1772702743681,3.87797241,91.427,91.364,9.848]
[1772702744690,3.87797241,91.412,91.344,3.75243385]
[1772702745592,9.843,91.411,91.353,9.849]
[1772702745796,13.72097241,91.411,91.353,9.849]
[1772702746389,13.72097241,91.411,91.345,3.75243385]
[1772702747497,3.87797241,91.408,91.345,3.75243385]
[1772702748295,3.87797241,91.408,91.348,13.60143385]
[1772702748695,3.87797241,91.408,91.349,3.81478167]
[1772702748890,3.732479,91.404,91.342,9.85]
[1772702749096,3.732479,91.404,91.321,3.81478167]